fUSD/lending_fUSD_20240406
["ID","MTS","AMOUNT","RATE_DAILY","PERIOD"]
[321690632,1712388639578,-500.0,0.00024487,2]
[321690633,1712388639587,-500.0,0.00024487,2]
[321690634,1712388639597,-612.84,0.00024487,2]
[321690635,1712388639607,-500.0,0.00024487,2]
[321690636,1712388639616,-500.0,0.00024487,2]
[321690637,1712388639626,-500.0,0.00024487,2]
[321690638,1712388639635,-750.99,0.00024487,2]
[321690639,1712388639645,-500.0,0.00024487,2]
[321690640,1712388639654,-500.0,0.00024487,2]
[321690641,1712388639663,-500.0,0.00024487,2]
[321690642,1712388639672,-500.0,0.00024487,2]
[321690643,1712388639682,-930.81,0.00024487,2]
[321690644,1712388639691,-500.0,0.00024487,2]
[321690645,1712388639700,-558.52,0.00024487,2]
[321690646,1712388639710,-500.0,0.00024487,2]
[321690647,1712388639719,-500.0,0.00024487,2]
[321690648,1712388639728,-500.0,0.00024487,2]
[321690649,1712388639737,-500.0,0.00024487,2]
[321690650,1712388639747,-500.0,0.00024487,2]
[321690651,1712388639756,-500.0,0.00024487,2]
[321690652,1712388639767,-517.58019778,0.00024487,2]
[321690653,1712388639776,-500.0,0.00024487,2]
[321690654,1712388639787,-522.3231324,0.00024487,2]
[321690655,1712388639797,-500.0,0.00024487,2]
[321690656,1712388639808,-500.0,0.00024487,2]
[321690657,1712388639818,-500.0,0.00024487,2]
[321690658,1712388639827,-515.59,0.00024487,2]
[321690659,1712388639838,-500.0,0.00024487,2]
[321690660,1712388639847,-514.72249357,0.00024487,2]
[321690661,1712388639857,-500.0,0.00024487,2]
[321690662,1712388639867,-500.0,0.00024487,2]
[321690663,1712388639878,-500.0,0.00024487,2]
[321690664,1712388639887,-516.15589958,0.00024487,2]
[321690665,1712388639896,-603.48,0.00024487,2]
[321690666,1712388639908,-559.33,0.00024487,2]
[321690667,1712388639918,-500.0,0.00024487,2]
[321690668,1712388639928,-500.0,0.00024487,2]
[321690669,1712388639940,-567.35,0.00024487,2]
[321690670,1712388639949,-334.82,0.00024487,2]
[321690671,1712388639958,-351.09,0.00024487,2]
[321690672,1712388639968,-500.0,0.00024487,2]
[321690673,1712388639978,-500.0,0.00024487,2]
[321690674,1712388639987,-641.46693765,0.00024488,2]
[321690675,1712388639997,-500.0,0.00024488,2]
[321690676,1712388640007,-523.74113633,0.00024488,2]
[321690677,1712388640017,-517.59481635,0.00024488,2]
[321690678,1712388640026,-500.38550192,0.00024488,2]
[321690679,1712388640036,-500.0,0.00024488,2]
[321690680,1712388640045,-514.72348295,0.00024488,2]
[321690681,1712388640055,-500.0,0.00024488,2]
[321690682,1712388640064,-500.0,0.00024488,2]
[321690683,1712388640073,-520.7391056,0.00024488,2]
[321690684,1712388640083,-270.21293724,0.00024488,2]
[321690685,1712388640092,-160.46593721,0.00024488,2]
[321690686,1712388640102,-500.0,0.00024488,2]
[321690687,1712388640111,-500.0,0.00024488,2]
[321690688,1712388640120,-500.0,0.00024488,2]
[321690689,1712388640130,-500.0,0.00024488,2]
[321690690,1712388640139,-500.0,0.00024488,2]
[321690691,1712388640148,-500.0,0.00024488,2]
[321690692,1712388640158,-500.0,0.00024488,2]
[321690693,1712388640167,-500.0,0.00024488,2]
[321690694,1712388640176,-500.0,0.00024488,2]
[321690695,1712388640186,-500.0,0.00024488,2]
[321690696,1712388640195,-513.7600542,0.00024488,2]
[321690697,1712388640205,-500.0,0.00024488,2]
[321690698,1712388640215,-500.0,0.00024488,2]
[321690699,1712388640226,-500.0,0.00024488,2]
[321690700,1712388640236,-500.0,0.00024488,2]
[321690701,1712388640245,-496.41468068,0.00024488,2]
[321690702,1712388640254,-500.0,0.00024488,2]
[321690703,1712388640265,-500.0,0.00024488,2]
[321690704,1712388640274,-500.0,0.00024488,2]
[321690705,1712388640283,-500.0,0.00024488,2]
[321690706,1712388640292,-500.0,0.00024488,2]
[321690707,1712388640303,-572.48941651,0.00024488,2]
[321690708,1712388640317,-508.11218388,0.00024488,2]
[321690709,1712388640327,-500.0,0.00024488,2]
[321690710,1712388640340,-500.0,0.00024488,2]
[321690711,1712388640351,-500.0,0.00024488,2]
[321690712,1712388640360,-505.02855922,0.00024488,2]
[321690713,1712388640369,-541.27640606,0.00024488,2]
[321690715,1712388640379,-500.0,0.00024488,2]
[321690717,1712388640389,-514.03045971,0.00024488,2]
[321690718,1712388640397,-500.0,0.00024488,2]
[321690720,1712388640406,-500.0,0.00024488,2]
[321690722,1712388640415,-586.62,0.00024488,2]
[321690723,1712388640425,-500.20139539,0.00024488,2]
[321690726,1712388640434,-500.0,0.00024488,2]
[321690729,1712388640443,-500.0,0.00024488,2]
[321690731,1712388640453,-500.0,0.00024488,2]
[321690732,1712388640462,-500.0,0.00024488,2]
[321690733,1712388640472,-516.91843096,0.00024488,2]
[321690734,1712388640481,-500.0,0.00024488,2]
[321690735,1712388640490,-500.0,0.00024488,2]
[321690736,1712388640499,-500.0,0.00024488,2]
[321690737,1712388640509,-500.0,0.00024488,2]
[321690738,1712388640519,-500.0,0.00024488,2]
[321690739,1712388640529,-507.10041855,0.00024488,2]
[321690740,1712388640539,-500.0,0.00024488,2]
[321690741,1712388640548,-500.0,0.00024488,2]
[321690742,1712388640558,-500.0,0.00024488,2]
[321690743,1712388640567,-500.0,0.00024488,2]
[321690744,1712388640578,-560.02253214,0.00024488,2]
[321690745,1712388640589,-500.0,0.00024488,2]
[321690746,1712388640598,-500.0,0.00024488,2]
[321690747,1712388640607,-500.0,0.00024488,2]
[321690748,1712388640616,-534.39139974,0.00024488,2]
[321690749,1712388640626,-500.0,0.00024488,2]
[321690750,1712388640635,-595.39483491,0.00024488,2]
[321690751,1712388640644,-534.41290901,0.00024488,2]
[321690752,1712388640653,-500.0,0.00024488,2]
[321690753,1712388640663,-500.0,0.00024488,2]
[321690754,1712388640672,-500.0,0.00024488,2]
[321690755,1712388640681,-512.91279593,0.00024488,2]
[321690756,1712388640690,-500.0,0.00024488,2]
[321690757,1712388640700,-560.91510343,0.00024488,2]
[321690758,1712388640709,-500.0,0.00024488,2]
[321690759,1712388640719,-499.92982446,0.00024488,2]
[321690760,1712388640728,-500.0,0.00024488,2]
[321690761,1712388640738,-647.97,0.00024488,2]
[321690762,1712388640747,-405.32181852,0.00024488,2]
[321690763,1712388640757,-316.72432002,0.00024488,2]
[321690764,1712388640766,-511.24223911,0.00024488,2]
[321690765,1712388640776,-500.0,0.00024488,2]
[321690766,1712388640785,-500.0,0.00024488,2]
[321690767,1712388640794,-531.97410079,0.00024488,2]
[321690768,1712388640805,-505.88532957,0.00024488,2]
[321690769,1712388640815,-500.0,0.00024488,2]
[321690770,1712388640826,-500.0,0.00024488,2]
[321690771,1712388640836,-500.0,0.00024488,2]
[321690772,1712388640847,-500.0,0.00024488,2]
[321690773,1712388640858,-500.0,0.00024488,2]
[321690774,1712388640868,-500.0,0.00024488,2]
[321690775,1712388640878,-503.60856855,0.00024488,2]
[321690776,1712388640889,-500.0,0.00024488,2]
[321690777,1712388640900,-500.0,0.00024488,2]
[321690778,1712388640909,-500.0,0.00024488,2]
[321690779,1712388640919,-500.0,0.00024488,2]
[321690780,1712388640929,-500.0,0.00024488,2]
[321690781,1712388640939,-500.0,0.00024488,2]
[321690782,1712388640949,-500.0,0.00024488,2]
[321690783,1712388640958,-2009.89,0.00024488,2]
[321690784,1712388640968,-500.0,0.00024488,2]
[321690785,1712388640977,-500.0,0.00024488,2]
[321690786,1712388640986,-613.34,0.00024488,2]
[321690787,1712388640995,-500.0,0.00024488,2]
[321690788,1712388641005,-500.0,0.00024488,2]
[321690789,1712388641015,-500.0,0.00024488,2]
[321690790,1712388641025,-500.0,0.00024488,2]
[321690791,1712388641034,-500.0,0.00024488,2]
[321690792,1712388641044,-556.11,0.00024488,2]
[321690793,1712388641052,-640.43,0.00024488,2]
[321690794,1712388641062,-500.0,0.00024488,2]
[321690795,1712388641073,-500.0,0.00024488,2]
[321690796,1712388641082,-500.0,0.00024488,2]
[321690797,1712388641092,-500.0,0.00024488,2]
[321690798,1712388641101,-500.0,0.00024488,2]
[321690799,1712388641111,-500.0,0.00024488,2]
[321690800,1712388641120,-500.0,0.00024488,2]
[321690801,1712388641130,-500.0,0.00024488,2]
[321690802,1712388641140,-500.0,0.00024488,2]
[321690803,1712388641150,-500.0,0.00024488,2]
[321690804,1712388641160,-746.94,0.00024488,2]
[321690805,1712388641169,-500.0,0.00024488,2]
[321690806,1712388641178,-479.61,0.00024488,2]
[321690807,1712388641187,-500.0,0.00024488,2]
[321690808,1712388641197,-500.0,0.00024488,2]
[321690809,1712388641207,-500.0,0.00024488,2]
[321690810,1712388641218,-480.46509618,0.00024488,2]
[321690811,1712388641228,-500.0,0.00024488,2]
[321690812,1712388641238,-780.1,0.00024488,2]
[321690813,1712388641247,-1008.2,0.00024488,2]
[321690814,1712388641256,-587.85,0.00024488,2]
[321690815,1712388641266,-500.0,0.00024488,2]
[321690816,1712388641276,-500.0,0.00024488,2]
[321690817,1712388641285,-500.0,0.00024488,2]
[321690818,1712388641294,-269.248782,0.00024488,2]
[321690819,1712388641303,-897.84,0.00024488,2]
[321690820,1712388641316,-496.73097802,0.00024488,2]
[321690821,1712388641326,-500.0,0.00024488,2]
[321690822,1712388641335,-500.0,0.00024488,2]
[321690823,1712388641344,-500.0,0.00024488,2]
[321690824,1712388641354,-533.04046709,0.00024488,2]
[321690825,1712388641363,-500.0,0.00024488,2]
[321690826,1712388641373,-500.0,0.00024488,2]
[321690827,1712388641381,-500.0,0.00024488,2]
[321690828,1712388641391,-500.0,0.00024488,2]
[321690829,1712388641400,-750.99,0.00024488,2]
[321690830,1712388641410,-500.0,0.00024488,2]
[321690831,1712388641419,-500.0,0.00024488,2]
[321690832,1712388641431,-500.0,0.00024488,2]
[321690833,1712388641440,-500.0,0.00024488,2]
[321690834,1712388641448,-500.0,0.00024488,2]
[321690835,1712388641458,-500.0,0.00024488,2]
[321690836,1712388641467,-500.0,0.00024488,2]
[321690837,1712388641476,-930.81,0.00024488,2]
[321690838,1712388641485,-500.0,0.00024488,2]
[321690839,1712388641494,-506.73,0.00024488,2]
[321690840,1712388641503,-500.0,0.00024488,2]
[321690841,1712388641513,-506.7180443,0.00024488,2]
[321690842,1712388641521,-500.0,0.00024488,2]
[321690843,1712388641531,-509.20708527,0.00024488,2]
[321690844,1712388641539,-500.0,0.00024488,2]
[321690845,1712388641548,-507.78894452,0.00024488,2]
[321690846,1712388641557,-500.0,0.00024488,2]
[321690847,1712388641566,-1506.91,0.00024488,2]
[321690848,1712388641575,-500.0,0.00024488,2]
[321690849,1712388641584,-506.13198468,0.00024488,2]
[321690850,1712388641593,-502.47376481,0.00024488,2]
[321690851,1712388641603,-335.88,0.00024488,2]
[321690852,1712388641613,-500.0,0.00024488,2]
[321690853,1712388641623,-500.0,0.00024488,2]
[321690854,1712388641633,-505.36777304,0.00024488,2]
[321690855,1712388641642,-500.0,0.00024488,2]
[321690856,1712388641652,-500.0,0.00024488,2]
[321690857,1712388641662,-502.68922498,0.00024488,2]
[321690858,1712388641671,-500.0,0.00024488,2]
[321690859,1712388641680,-502.55074076,0.00024488,2]
[321690860,1712388641689,-500.0,0.00024488,2]
[321690861,1712388641699,-500.0,0.00024488,2]
[321690862,1712388641707,-500.0,0.00024488,2]
[321690863,1712388641717,-517.56071137,0.00024488,2]
[321690864,1712388641726,-500.0,0.00024488,2]
[321690865,1712388641735,-515.59,0.00024488,2]
[321690866,1712388641745,-500.0,0.00024488,2]
[321690867,1712388641754,-518.41129333,0.00024488,2]
[321690868,1712388641763,-500.0,0.00024488,2]
[321690869,1712388641772,-500.0,0.00024488,2]
[321690870,1712388641781,-180.76730459,0.00024488,2]
[321690871,1712388641791,-500.0,0.00024488,2]
[321690872,1712388641800,-500.0,0.00024488,2]
[321690873,1712388641809,-533.83,0.00024488,2]
[321690874,1712388641818,-559.33,0.00024488,2]
[321690875,1712388641828,-500.0,0.00024488,2]
[321690876,1712388641837,-499.70506638,0.00024488,2]
[321690877,1712388641846,-500.0,0.00024488,2]
[321690878,1712388641855,-500.0,0.00024488,2]
[321690879,1712388641864,-500.0,0.00024488,2]
[321690880,1712388641873,-500.0,0.00024488,2]
[321690881,1712388641883,-528.92057758,0.00024488,2]
[321690882,1712388641892,-324.1,0.00024488,2]
[321690883,1712388641901,-500.0,0.00024488,2]
[321690884,1712388641910,-500.0,0.00024488,2]
[321690885,1712388641918,-24527.93689123,0.00024489,2]
[321690886,1712388642072,-344.84725424,0.00024197,2]
[321690887,1712388642085,-155.15274576,0.00024197,2]
[321690888,1712388642094,-554.94802401,0.00024489,2]
[321690889,1712388642106,-72064.89126809,0.00024489,2]
[321690890,1712388642118,-39839.20319544,0.00024489,2]
[321690902,1712388643269,-376.39072012,0.00024197,2]
[321690904,1712388643278,-607.98864443,0.00024487,2]
[321690906,1712388643287,-510.91474291,0.00024488,2]
[321690908,1712388643296,-450.34428884,0.00024488,2]
[321690910,1712388643310,-56.55847694,0.00024488,2]
[321690911,1712388643320,-94885.54378501,0.00024489,2]
[321690912,1712388643331,-13127.47683622,0.00024489,2]
[321690913,1712388643340,-888.40689468,0.00024494,2]
[321690914,1712388643349,-5215.25576929,0.00024494,2]
[321690915,1712388643359,-500.0,0.00024497,2]
[321690916,1712388643368,-500.0,0.00024497,2]
[321690917,1712388643377,-500.0,0.00024497,2]
[321690918,1712388643387,-500.0,0.00024497,2]
[321690919,1712388643395,-500.0,0.00024497,2]
[321690920,1712388643404,-500.0,0.00024497,2]
[321690921,1712388643413,-500.0,0.00024497,2]
[321690922,1712388643422,-500.0,0.00024497,2]
[321690923,1712388643431,-500.0,0.00024497,2]
[321690924,1712388643440,-509.19439927,0.00024497,2]
[321690925,1712388643449,-500.0,0.00024497,2]
[321690926,1712388643457,-507.64734553,0.00024497,2]
[321690927,1712388643467,-500.0,0.00024497,2]
[321690928,1712388643476,-500.0,0.00024497,2]
[321690929,1712388643484,-544.60569955,0.00024497,2]
[321690930,1712388643493,-534.07170883,0.00024497,2]
[321690931,1712388643502,-321.98907309,0.00024497,2]
[321690932,1712388643511,-583.15828059,0.00024497,2]
[321690933,1712388643520,-500.0,0.00024497,2]
[321690934,1712388643529,-552.47513573,0.00024497,2]
[321690935,1712388643538,-541.0890566,0.00024497,2]
[321690936,1712388643547,-500.0,0.00024497,2]
[321690937,1712388643556,-500.0,0.00024497,2]
[321690938,1712388643565,-500.0,0.00024497,2]
[321690939,1712388643574,-500.0,0.00024497,2]
[321690940,1712388643583,-500.0,0.00024497,2]
[321690941,1712388643593,-500.0,0.00024497,2]
[321690942,1712388643602,-500.0,0.00024497,2]
[321690943,1712388643611,-500.0,0.00024497,2]
[321690944,1712388643620,-249.95655319,0.00024497,2]
[321690945,1712388643629,-500.0,0.00024497,2]
[321690946,1712388643639,-500.0,0.00024497,2]
[321690947,1712388643649,-500.0,0.00024497,2]
[321690948,1712388643658,-500.0,0.00024497,2]
[321690949,1712388643671,-500.0,0.00024497,2]
[321690950,1712388643680,-500.0,0.00024497,2]
[321690951,1712388643689,-500.0,0.00024497,2]
[321690952,1712388643698,-500.0,0.00024497,2]
[321690953,1712388643707,-473.24053198,0.00024497,2]
[321690954,1712388643716,-514.63365803,0.00024497,2]
[321690955,1712388643725,-500.0,0.00024497,2]
[321690956,1712388643734,-500.0,0.00024497,2]
[321690957,1712388643744,-500.0,0.00024497,2]
[321690958,1712388643753,-500.0,0.00024497,2]
[321690959,1712388643763,-500.0,0.00024497,2]
[321690960,1712388643772,-500.0,0.00024497,2]
[321690961,1712388643781,-500.0,0.00024497,2]
[321690962,1712388643791,-500.0,0.00024497,2]
[321690963,1712388643800,-647.97,0.00024497,2]
[321690964,1712388643809,-500.0,0.00024497,2]
[321690965,1712388643818,-500.0,0.00024497,2]
[321690966,1712388643827,-500.0,0.00024497,2]
[321690967,1712388643836,-500.0,0.00024497,2]
[321690968,1712388643846,-500.0,0.00024497,2]
[321690969,1712388643854,-500.0,0.00024497,2]
[321690970,1712388643864,-500.0,0.00024497,2]
[321690971,1712388643873,-500.0,0.00024497,2]
[321690972,1712388643882,-500.0,0.00024497,2]
[321690973,1712388643891,-500.0,0.00024497,2]
[321690974,1712388643900,-500.0,0.00024497,2]
[321690975,1712388643909,-500.0,0.00024497,2]
[321690976,1712388643918,-500.0,0.00024497,2]
[321690977,1712388643927,-2009.89,0.00024497,2]
[321690978,1712388643936,-500.0,0.00024497,2]
[321690979,1712388643945,-500.0,0.00024497,2]
[321690980,1712388643954,-613.34,0.00024497,2]
[321690981,1712388643963,-500.0,0.00024497,2]
[321690982,1712388643972,-500.0,0.00024497,2]
[321690983,1712388643982,-500.0,0.00024497,2]
[321690984,1712388643991,-500.0,0.00024497,2]
[321690985,1712388644000,-500.0,0.00024497,2]
[321690986,1712388644010,-556.11,0.00024497,2]
[321690987,1712388644020,-640.43,0.00024497,2]
[321690988,1712388644029,-500.0,0.00024497,2]
[321690989,1712388644038,-500.0,0.00024497,2]
[321690990,1712388644048,-500.0,0.00024497,2]
[321690991,1712388644057,-500.0,0.00024497,2]
[321690992,1712388644066,-500.0,0.00024497,2]
[321690993,1712388644075,-500.0,0.00024497,2]
[321690994,1712388644084,-500.0,0.00024497,2]
[321690995,1712388644093,-500.0,0.00024497,2]
[321690996,1712388644102,-500.0,0.00024497,2]
[321690997,1712388644112,-500.0,0.00024497,2]
[321690998,1712388644121,-746.94,0.00024497,2]
[321690999,1712388644130,-500.0,0.00024497,2]
[321691000,1712388644139,-500.0,0.00024497,2]
[321691001,1712388644148,-500.0,0.00024497,2]
[321691002,1712388644157,-500.0,0.00024497,2]
[321691003,1712388644166,-500.0,0.00024497,2]
[321691004,1712388644175,-780.1,0.00024497,2]
[321691005,1712388644184,-1008.2,0.00024497,2]
[321691006,1712388644193,-500.0,0.00024497,2]
[321691007,1712388644203,-500.0,0.00024497,2]
[321691008,1712388644212,-500.0,0.00024497,2]
[321691009,1712388644222,-897.84,0.00024497,2]
[321691010,1712388644231,-500.0,0.00024497,2]
[321691011,1712388644240,-500.0,0.00024497,2]
[321691012,1712388644250,-500.0,0.00024497,2]
[321691013,1712388644258,-500.0,0.00024497,2]
[321691014,1712388644268,-500.0,0.00024497,2]
[321691015,1712388644278,-750.99,0.00024497,2]
[321691016,1712388644287,-500.0,0.00024497,2]
[321691017,1712388644297,-500.0,0.00024497,2]
[321691018,1712388644308,-500.0,0.00024497,2]
[321691019,1712388644320,-500.0,0.00024497,2]
[321691020,1712388644329,-500.0,0.00024497,2]
[321691021,1712388644338,-500.0,0.00024497,2]
[321691022,1712388644349,-500.0,0.00024497,2]
[321691023,1712388644358,-930.81,0.00024497,2]
[321691024,1712388644367,-500.0,0.00024497,2]
[321691025,1712388644377,-500.0,0.00024497,2]
[321691026,1712388644386,-500.0,0.00024497,2]
[321691027,1712388644397,-546.08,0.00024497,2]
[321691028,1712388644405,-1506.91,0.00024497,2]
[321691029,1712388644415,-500.0,0.00024497,2]
[321691030,1712388644423,-500.0,0.00024497,2]
[321691031,1712388644432,-500.0,0.00024497,2]
[321691032,1712388644441,-588.33,0.00024497,2]
[321691033,1712388644450,-564.59,0.00024497,2]
[321691034,1712388644459,-500.0,0.00024497,2]
[321691035,1712388644468,-500.0,0.00024497,2]
[321691036,1712388644478,-515.59,0.00024497,2]
[321691037,1712388644487,-500.0,0.00024497,2]
[321691038,1712388644496,-625.07,0.00024497,2]
[321691039,1712388644506,-500.0,0.00024497,2]
[321691040,1712388644517,-400.98,0.00024497,2]
[321691041,1712388644526,-559.33,0.00024497,2]
[321691042,1712388644535,-500.0,0.00024497,2]
[321691043,1712388644545,-166.59,0.00024497,2]
[321691044,1712388644554,-494.72,0.00024497,2]
[321691045,1712388644563,-595.2,0.00024497,2]
[321691046,1712388644572,-39929.6927,0.00024498,2]
[321691047,1712388644581,-100000.0,0.00024498,2]
[321691048,1712388644590,-154.53413933,0.00024498,2]
[321691049,1712388644600,-11433.20578282,0.00024498,2]
[321691050,1712388644609,-500.0,0.00024499,2]
[321691051,1712388644618,-500.0,0.00024499,2]
[321691052,1712388644628,-170.9701071,0.00024499,2]
[321691053,1712388644637,-500.0,0.00024499,2]
[321691054,1712388644646,-164.64797126,0.00024499,2]
[321691055,1712388644655,-380.13948286,0.00024499,2]
[321691056,1712388644664,-348.39402791,0.00024499,2]
[321691057,1712388644673,-500.0,0.00024499,2]
[321691058,1712388644682,-7061.663474,0.000245,2]
[321691059,1712388644691,-6070.22279205,0.000245,2]
[321691060,1712388644701,-1000.0,0.000245,2]
[321691061,1712388644710,-647.918954,0.000245,2]
[321691062,1712388644718,-403.4092716,0.00024502,2]
[321691063,1712388644728,-154.53413923,0.00024517,2]
[321691064,1712388644736,-2095.24120307,0.00024527,2]
[321691065,1712388644745,-1533.3019294,0.00024527,2]
[321691066,1712388644754,-450.48200042,0.00024527,2]
[321691067,1712388644764,-11433.20578274,0.00024535,2]
[321691068,1712388644773,-154.53413923,0.00024536,2]
[321691069,1712388644782,-565.59608158,0.00024538,2]
[321691070,1712388644791,-403.4092716,0.00024539,2]
[321691071,1712388644800,-154.53413923,0.00024555,2]
[321691072,1712388644809,-210.873093,0.00024571,2]
[321691073,1712388644818,-11433.20578274,0.00024571,2]
[321691074,1712388644828,-154.53413923,0.00024575,2]
[321691075,1712388644837,-403.4092716,0.00024575,2]
[321691076,1712388644845,-46949.4298374,0.0002458,2]
[321691077,1712388644854,-317.75578208,0.00024586,2]
[321691078,1712388644863,-599.73693163,0.00024589,2]
[321691079,1712388644872,-654.6543029,0.00024589,2]
[321691080,1712388644881,-159.937453,0.0002459,2]
[321691081,1712388644890,-19070.15899456,0.0002459,2]
[321691082,1712388644899,-2000.0,0.0002459,2]
[321691083,1712388644907,-200.0,0.0002459,2]
[321691084,1712388644917,-2000.0,0.0002459,2]
[321691085,1712388644926,-200.0,0.0002459,2]
[321691086,1712388644935,-200.0,0.0002459,2]
[321691087,1712388644944,-1571.18309,0.0002459,2]
[321691088,1712388644953,-154.53413923,0.00024594,2]
[321691089,1712388644962,-500.0,0.00024597,2]
[321691090,1712388644971,-500.0,0.00024597,2]
[321691091,1712388644981,-500.0,0.00024597,2]
[321691092,1712388644990,-500.0,0.00024597,2]
[321691093,1712388644999,-500.0,0.00024597,2]
[321691094,1712388645008,-500.0,0.00024597,2]
[321691095,1712388645018,-500.0,0.00024597,2]
[321691096,1712388645027,-512.46588934,0.00024597,2]
[321691097,1712388645036,-500.0,0.00024597,2]
[321691098,1712388645045,-500.0,0.00024597,2]
[321691099,1712388645054,-500.0,0.00024597,2]
[321691100,1712388645064,-500.0,0.00024597,2]
[321691101,1712388645073,-500.0,0.00024597,2]
[321691102,1712388645082,-500.0,0.00024597,2]
[321691103,1712388645091,-500.0,0.00024597,2]
[321691104,1712388645101,-508.03648086,0.00024597,2]
[321691105,1712388645110,-517.56468855,0.00024597,2]
[321691106,1712388645119,-500.0,0.00024597,2]
[321691107,1712388645128,-640.38164511,0.00024597,2]
[321691108,1712388645138,-500.0,0.00024597,2]
[321691109,1712388645148,-500.0,0.00024597,2]
[321691110,1712388645157,-500.0,0.00024597,2]
[321691111,1712388645167,-550.77587816,0.00024597,2]
[321691112,1712388645176,-500.0,0.00024597,2]
[321691113,1712388645186,-500.0,0.00024597,2]
[321691114,1712388645195,-500.0,0.00024597,2]
[321691115,1712388645205,-515.62690029,0.00024597,2]
[321691116,1712388645215,-500.0,0.00024597,2]
[321691117,1712388645225,-500.0,0.00024597,2]
[321691118,1712388645234,-500.0,0.00024597,2]
[321691119,1712388645244,-514.85146372,0.00024597,2]
[321691120,1712388645253,-500.0,0.00024597,2]
[321691121,1712388645263,-500.0,0.00024597,2]
[321691122,1712388645272,-500.0,0.00024597,2]
[321691123,1712388645281,-647.97,0.00024597,2]
[321691124,1712388645291,-500.0,0.00024597,2]
[321691125,1712388645300,-500.0,0.00024597,2]
[321691126,1712388645313,-500.0,0.00024597,2]
[321691127,1712388645323,-500.0,0.00024597,2]
[321691128,1712388645332,-500.0,0.00024597,2]
[321691129,1712388645342,-500.0,0.00024597,2]
[321691130,1712388645352,-500.0,0.00024597,2]
[321691131,1712388645361,-500.0,0.00024597,2]
[321691132,1712388645371,-500.0,0.00024597,2]
[321691133,1712388645380,-500.0,0.00024597,2]
[321691134,1712388645391,-500.0,0.00024597,2]
[321691135,1712388645401,-500.0,0.00024597,2]
[321691136,1712388645410,-500.0,0.00024597,2]
[321691137,1712388645419,-2009.89,0.00024597,2]
[321691138,1712388645428,-500.0,0.00024597,2]
[321691139,1712388645437,-500.0,0.00024597,2]
[321691140,1712388645447,-613.34,0.00024597,2]
[321691141,1712388645456,-500.0,0.00024597,2]
[321691142,1712388645466,-500.0,0.00024597,2]
[321691143,1712388645476,-500.0,0.00024597,2]
[321691145,1712388645485,-500.0,0.00024597,2]
[321691146,1712388645494,-500.0,0.00024597,2]
[321691147,1712388645503,-556.11,0.00024597,2]
[321691148,1712388645513,-640.43,0.00024597,2]
[321691149,1712388645522,-500.0,0.00024597,2]
[321691150,1712388645531,-500.0,0.00024597,2]
[321691151,1712388645541,-500.0,0.00024597,2]
[321691152,1712388645550,-500.0,0.00024597,2]
[321691153,1712388645559,-500.0,0.00024597,2]
[321691154,1712388645569,-500.0,0.00024597,2]
[321691155,1712388645578,-500.0,0.00024597,2]
[321691156,1712388645587,-500.0,0.00024597,2]